[Event "88th GER-ch Men 2017"]
[Site "Apolda"]
[Date "2017.06.23"]
[Round "1"]
[White "Hoefelsauer, Thomas"]
[Black "Schmitt, Philipp"]
[Result "0-1"]
[ECO "D56"]
[WhiteElo "2169"]
[BlackElo "2174"]
[Annotator "RC"]
[PlyCount "96"]
[EventDate "2017.??.??"]
[EventType "swiss"]
[EventCountry "GER"]
[SourceTitle "playchess.com"]
[Source "ChessBase"]
[SourceQuality "1"]
[TimeControl "40/6000+30:3000+30"]

1. d4 {[%emt 0:00:00]} e6 {[%emt 0:00:20]} 2. c4 {[%emt 0:00:00]} d5 {[%emt 0:00:51]} 3. Nc3 {[%emt 0:00:00]} Be7 {[%emt 0:01:48]} 4. Nf3 {[%emt 0:00:00]} Nf6 {[%emt 0:00:09]} 5. Bg5 {[%emt 0:00:00]} h6 {[%emt 0:00:51]} 6. Bh4 {[%emt 0:00:05]} O-O {[%emt 0:02:13]} 7. e3 {[%emt 0:00:04]} c6 {[%emt 0:05:48]} 8. Rc1 {[%emt 0:00:30]} Nbd7 {[%emt 0:01:44]} 9. Bd3 {[%emt 0:00:30]} dxc4 {[%emt 0:02:30]} 10. Bxc4 {[%emt 0:00:08]} a6 {[%emt 0:06:54]} 11. a4 {[%emt 0:02:50]} b5 {[%emt 0:08:50]} 12. Bd3 {[%emt 0:00:54]} Bb7 {[%emt 0:11:10]} 13. O-O {[%emt 0:01:44]} Rc8 {[%emt 0:03:11]} 14. Qe2 {[%emt 0:10:41]} b4 {[%emt 0:06:20]} 15. Bxf6 {[%emt 0:11:47]} Nxf6 {[%emt 0:03:31]} 16. Ne4 {[%emt 0:00:44]} Nxe4 {[%emt 0:19:38]} 17. Bxe4 {[%emt 0:00:10]} Bd6 {[%emt 0:05:18]} 18. Nd2 {[%emt 0:14:16]} Qe7 {[%emt 0:03:28]} 19. Nb3 {[%emt 0:13:04]} e5 {[%emt 0:08:27]} 20. Nc5 {[%emt 0:08:16]} exd4 {[%emt 0:01:52]} 21. exd4 {[%emt 0:00:35]} Rfe8 {[%emt 0:02:58]} 22. Rfe1 {[%emt 0:11:33]} Qc7 {[%emt 0:02:15]} 23. g3 {[%emt 0:03:53]} Re7 {[%emt 0:01:02]} 24. Qf3 {[%emt 0:05:44]} Rce8 {[%emt 0:00:37]} 25. Re3 {[%emt 0:00:48]} Bc8 {[%emt 0:03:55]} 26. Bxc6 {[%emt 0:02:35]} Rxe3 {[%emt 0:00:28]} 27. fxe3 {[%emt 0:00:02]} Bg4 {[%emt 0:02:20]} 28. Qxg4 {[%emt 0:15:01]} Qxc6 {[%emt 0:00:03]} 29. Kf2 {[%emt 0:01:35]} Bxc5 {[%emt 0:01:19]} 30. dxc5 {[%emt 0:00:31]} Qf6+ {[%emt 0:00:07]} 31. Kg1 {[%emt 0:01:36]} Qxb2 {[%emt 0:00:23]} 32. Qc4 {[%emt 0:05:03]} Rxe3 {[%emt 0:03:13]} 33. Rf1 {[%emt 0:00:01]} Qb3 {[%emt 0:02:50]} 34. Qf4 {[%emt 0:00:19]} Rc3 {[%emt 0:00:23]} 35. Qe5 {[%emt 0:01:59]} Qc4 {[%emt 0:00:32]} 36. Qe8+ {[%emt 0:00:29]} Kh7 {[%emt 0:00:02]} 37. Rxf7 {[%emt 0:00:29]} Qxc5+ {[%emt 0:00:14]} 38. Rf2 {[%emt 0:00:32]} Rc1+ {[%emt 0:00:33]} 39. Kg2 {[%emt 0:00:01]} Qc6+ {[%emt 0:01:10]} 40. Qxc6 {[%emt 0:00:02]} Rxc6 {[%emt 0:50:06]} 41. a5 {[%emt 0:04:19]} b3 {[%emt 0:00:00]} 42. Rf3 {[%emt 0:03:53]} Rc2+ {[%emt 0:00:00]} 43. Kh3 {[%emt 0:00:08]} b2 {[%emt 0:00:00]} 44. Rb3 {[%emt 0:00:06]} Kg6 {[%emt 0:00:00]} 45. Kg4 {[%emt 0:01:09]} h5+ {[%emt 0:00:00]} 46. Kf4 {[%emt 0:00:10]} Rc4+ {[%emt 0:00:00]} 47. Ke5 {[%emt 0:01:52]} Rc5+ {[%emt 0:00:00]} 48. Kf4 {[%emt 0:00:25]} Rb5 {[%emt 0:00:00]} 0-1

[Event "88th GER-ch Men 2017"]
[Site "Apolda"]
[Date "2017.06.24"]
[Round "2"]
[White "Jahncke, Giso"]
[Black "Heinert, Eugen"]
[Result "1-0"]
[ECO "A20"]
[WhiteElo "2340"]
[BlackElo "2151"]
[Annotator "NA"]
[PlyCount "87"]
[EventDate "2017.??.??"]
[EventType "swiss"]
[EventCountry "GER"]
[SourceTitle "playchess.com"]
[Source "ChessBase"]
[SourceQuality "1"]
[TimeControl "40/6000+30:3000+30"]

1. c4 {[%emt 0:00:00]} e5 {[%emt 0:01:44]} 2. g3 {[%emt 0:00:00]} Nf6 {[%emt 0:00:06]} 3. Bg2 {[%emt 0:00:10]} Bc5 {[%emt 0:00:07]} 4. Nc3 {[%emt 0:00:44]} c6 {[%emt 0:04:24]} 5. d3 {[%emt 0:16:35]} d5 {[%emt 0:10:37]} 6. cxd5 {[%emt 0:04:33]} cxd5 {[%emt 0:00:25]} 7. Qb3 {[%emt 0:04:10]} Nc6 {[%emt 0:01:20]} 8. Nxd5 {[%emt 0:20:29]} Nd4 {[%emt 0:34:33]} 9. Qc4 {[%emt 0:03:59]} Be6 {[%emt 0:06:20]} 10. Nxf6+ {[%emt 0:02:35]} Qxf6 {[%emt 0:03:57]} 11. Qxc5 {[%emt 0:00:15]} Rc8 {[%emt 0:00:50]} 12. Qxa7 {[%emt 0:00:54]} Nc2+ {[%emt 0:02:45]} 13. Kd1 {[%emt 0:01:04]} Nxa1 {[%emt 0:00:09]} 14. Bxb7 {[%emt 0:00:15]} Qe7 {[%emt 0:13:15]} 15. Qa4+ {[%emt 0:07:05]} Bd7 {[%emt 0:00:48]} 16. Qa5 {[%emt 0:03:32]} Rb8 {[%emt 0:08:25]} 17. b3 {[%emt 0:02:03]} O-O {[%emt 0:02:18]} 18. Ba3 {[%emt 0:02:27]} Qf6 {[%emt 0:01:24]} 19. Bxf8 {[%emt 0:01:31]} Bc6 {[%emt 0:01:15]} 20. Be7 {[%emt 0:04:10]} Qxe7 {[%emt 0:05:22]} 21. Bxc6 {[%emt 0:01:40]} Qd6 {[%emt 0:00:02]} 22. Qc3 {[%emt 0:10:21]} Rc8 {[%emt 0:00:53]} 23. Nf3 {[%emt 0:00:53]} Rxc6 {[%emt 0:08:15]} 24. Qxe5 {[%emt 0:00:16]} Qxe5 {[%emt 0:00:25]} 25. Nxe5 {[%emt 0:00:06]} Rc2 {[%emt 0:00:01]} 26. f4 {[%emt 0:10:20]} Rb2 {[%emt 0:02:59]} 27. Kc1 {[%emt 0:01:59]} Rxe2 {[%emt 0:00:02]} 28. Kb1 {[%emt 0:01:03]} Nc2 {[%emt 0:00:02]} 29. Rc1 {[%emt 0:06:29]} Na3+ {[%emt 0:00:01]} 30. Ka1 {[%emt 0:00:05]} g6 {[%emt 0:02:10]} 31. Rc5 {[%emt 0:04:13]} f6 {[%emt 0:00:27]} 32. Nc4 {[%emt 0:00:35]} Nc2+ {[%emt 0:00:03]} 33. Kb2 {[%emt 0:00:41]} Nb4+ {[%emt 0:00:07]} 34. Ka3 {[%emt 0:00:50]} Nxd3 {[%emt 0:00:54]} 35. Rc8+ {[%emt 0:00:09]} Kg7 {[%emt 0:00:01]} 36. Rc7+ {[%emt 0:00:12]} Kh6 {[%emt 0:00:17]} 37. Nb6 {[%emt 0:01:07]} Re6 {[%emt 0:00:40]} 38. Na4 {[%emt 0:00:32]} Re2 {[%emt 0:00:03]} 39. Nc3 {[%emt 0:00:35]} Rxh2 {[%emt 0:00:26]} 40. b4 {[%emt 0:00:37]} Rb2 {[%emt 0:52:06]} 41. Rd7 {[%emt 0:00:31]} Rxb4 {[%emt 0:00:00]} 42. Rxd3 {[%emt 0:00:15]} Rb7 {[%emt 0:00:00]} 43. Ne4 {[%emt 0:03:32]} f5 {[%emt 0:00:00]} 44. Nd6 {[%emt 0:01:08]} 1-0

[Event "88th GER-ch Men 2017"]
[Site "Apolda"]
[Date "2017.06.24"]
[Round "2"]
[White "Neyman, Igor"]
[Black "Kersten, Uwe"]
[Result "1-0"]
[ECO "E11"]
[WhiteElo "2308"]
[BlackElo "2257"]
[Annotator "NA"]
[PlyCount "83"]
[EventDate "2017.??.??"]
[EventType "swiss"]
[EventCountry "GER"]
[SourceTitle "playchess.com"]
[Source "ChessBase"]
[SourceQuality "1"]
[TimeControl "40/6000+30:3000+30"]

1. d4 {[%emt 0:00:00]} Nf6 {[%emt 0:00:18]} 2. Nf3 {[%emt 0:00:15]} e6 {[%emt 0:03:18]} 3. c4 {[%emt 0:01:00]} Bb4+ {[%emt 0:04:12]} 4. Nbd2 {[%emt 0:03:32]} O-O {[%emt 0:01:51]} 5. a3 {[%emt 0:01:17]} Be7 {[%emt 0:00:09]} 6. e4 {[%emt 0:03:03]} d5 {[%emt 0:00:16]} 7. Bd3 {[%emt 0:02:51]} c5 {[%emt 0:12:04]} 8. dxc5 {[%emt 0:11:47]} dxe4 {[%emt 0:15:13]} 9. Nxe4 {[%emt 0:02:09]} Nxe4 {[%emt 0:00:31]} 10. Bxe4 {[%emt 0:00:14]} Qxd1+ {[%emt 0:00:43]} 11. Kxd1 {[%emt 0:00:13]} Bxc5 {[%emt 0:00:56]} 12. Ke2 {[%emt 0:02:39]} a5 {[%emt 0:09:19]} 13. b3 {[%emt 0:05:12]} Nd7 {[%emt 0:03:01]} 14. Bd2 {[%emt 0:06:39]} Nf6 {[%emt 0:04:58]} 15. Bc2 {[%emt 0:02:45]} b6 {[%emt 0:00:17]} 16. b4 {[%emt 0:07:38]} Be7 {[%emt 0:01:02]} 17. Be3 {[%emt 0:09:55]} Bb7 {[%emt 0:08:52]} 18. Bxb6 {[%emt 0:07:54]} axb4 {[%emt 0:00:47]} 19. axb4 {[%emt 0:01:19]} Bxb4 {[%emt 0:00:05]} 20. Rhb1 {[%emt 0:04:37]} Be7 {[%emt 0:07:16]} 21. Bd4 {[%emt 0:03:24]} Ba6 {[%emt 0:07:12]} 22. Ra4 {[%emt 0:04:26]} Rfc8 {[%emt 0:08:34]} 23. Nd2 {[%emt 0:09:39]} Nd5 {[%emt 0:04:01]} 24. Ke1 {[%emt 0:03:47]} e5 {[%emt 0:07:47]} 25. Be4 {[%emt 0:06:08]} Bb7 {[%emt 0:07:56]} 26. Rxb7 {[%emt 0:02:01]} Rxa4 {[%emt 0:00:02]} 27. Bxd5 {[%emt 0:01:36]} exd4 {[%emt 0:01:03]} 28. Rxe7 {[%emt 0:00:43]} d3 {[%emt 0:00:15]} 29. f4 {[%emt 0:02:02]} Ra2 {[%emt 0:02:18]} 30. Re3 {[%emt 0:02:43]} Ra3 {[%emt 0:00:41]} 31. Kf2 {[%emt 0:01:41]} Kf8 {[%emt 0:00:30]} 32. Kf3 {[%emt 0:00:39]} f5 {[%emt 0:00:17]} 33. g4 {[%emt 0:01:04]} fxg4+ {[%emt 0:00:31]} 34. Kxg4 {[%emt 0:00:41]} Rb8 {[%emt 0:00:01]} 35. Bf3 {[%emt 0:00:44]} Rb2 {[%emt 0:00:18]} 36. Ne4 {[%emt 0:00:19]} Rxh2 {[%emt 0:01:25]} 37. c5 {[%emt 0:00:17]} h5+ {[%emt 0:00:25]} 38. Kg5 {[%emt 0:00:34]} Rc2 {[%emt 0:00:32]} 39. Nd6 {[%emt 0:01:11]} Rxc5+ {[%emt 0:00:31]} 40. Kg6 {[%emt 0:00:34]} Rc8 {[%emt 0:50:30]} 41. Nxc8 {[%emt 0:50:46]} Ra6+ {[%emt 0:00:00]} 42. Kxh5 {[%emt 0:00:00]} 1-0

[Event "88th GER-ch Men 2017"]
[Site "Apolda"]
[Date "2017.06.24"]
[Round "2"]
[White "Tonndorf, Matthias"]
[Black "Hoefelsauer, Thomas"]
[Result "1-0"]
[ECO "A01"]
[WhiteElo "2256"]
[BlackElo "2395"]
[Annotator "NA"]
[PlyCount "79"]
[EventDate "2017.??.??"]
[EventType "swiss"]
[EventCountry "GER"]
[SourceTitle "playchess.com"]
[Source "ChessBase"]
[SourceQuality "1"]
[TimeControl "40/6000+30:3000+30"]

1. b3 {[%emt 0:00:00]} d5 {[%emt 0:00:31]} 2. Bb2 {[%emt 0:00:00]} Bf5 {[%emt 0:00:18]} 3. Nf3 {[%emt 0:01:44]} e6 {[%emt 0:00:20]} 4. g3 {[%emt 0:01:30]} Nf6 {[%emt 0:00:24]} 5. Bg2 {[%emt 0:00:17]} Be7 {[%emt 0:00:27]} 6. O-O {[%emt 0:02:20]} O-O {[%emt 0:00:43]} 7. d3 {[%emt 0:03:34]} h6 {[%emt 0:01:02]} 8. Nbd2 {[%emt 0:02:19]} a5 {[%emt 0:04:15]} 9. a4 {[%emt 0:05:33]} Na6 {[%emt 0:03:21]} 10. Ne5 {[%emt 0:02:34]} Nc5 {[%emt 0:02:35]} 11. Qe1 {[%emt 0:06:16]} Bh7 {[%emt 0:04:59]} 12. e4 {[%emt 0:02:47]} c6 {[%emt 0:01:44]} 13. Qe2 {[%emt 0:01:04]} Qb6 {[%emt 0:06:26]} 14. Kh1 {[%emt 0:05:47]} Rad8 {[%emt 0:03:15]} 15. Ng4 {[%emt 0:06:00]} Ncd7 {[%emt 0:07:21]} 16. Ne3 {[%emt 0:05:48]} Nc5 {[%emt 0:13:55]} 17. e5 {[%emt 0:02:50]} Nfd7 {[%emt 0:01:04]} 18. f4 {[%emt 0:00:49]} Na6 {[%emt 0:04:43]} 19. Rf3 {[%emt 0:06:39]} Nb4 {[%emt 0:05:14]} 20. g4 {[%emt 0:03:41]} Bc5 {[%emt 0:04:48]} 21. Raf1 {[%emt 0:08:28]} Bxe3 {[%emt 0:01:56]} 22. Rxe3 {[%emt 0:01:08]} Nxc2 {[%emt 0:01:02]} 23. Rh3 {[%emt 0:00:44]} Nd4 {[%emt 0:12:08]} 24. Qf2 {[%emt 0:02:25]} Nc2 {[%emt 0:00:36]} 25. Qh4 {[%emt 0:01:56]} Ne3 {[%emt 0:01:17]} 26. f5 {[%emt 0:03:36]} exf5 {[%emt 0:11:44]} 27. g5 {[%emt 0:05:50]} Nxf1 {[%emt 0:04:37]} 28. e6 {[%emt 0:04:52]} fxe6 {[%emt 0:06:45]} 29. Bxg7 {[%emt 0:04:04]} Kxg7 {[%emt 0:01:09]} 30. Qxh6+ Kf7 31. Qxh7+ {[%emt 0:01:30]} Ke8 {[%emt 0:00:01]} 32. Nxf1 {[%emt 0:03:55]} Qd4 {[%emt 0:02:14]} 33. g6 {[%emt 0:05:28]} Nf6 {[%emt 0:01:12]} 34. Qxb7 {[%emt 0:02:33]} Ng4 {[%emt 0:00:55]} 35. Qxc6+ {[%emt 0:02:17]} Ke7 {[%emt 0:00:12]} 36. Rh7+ {[%emt 0:01:06]} Kf6 {[%emt 0:00:01]} 37. h3 {[%emt 0:01:22]} Kxg6 {[%emt 0:02:24]} 38. Re7 {[%emt 0:02:12]} Nf2+ {[%emt 0:01:54]} 39. Kh2 {[%emt 0:00:32]} Qe5+ {[%emt 0:01:51]} 40. Kg1 {[%emt 0:02:32]} 1-0

[Event "88th GER-ch Men 2017"]
[Site "Apolda"]
[Date "2017.06.24"]
[Round "2"]
[White "Middelhoff, Cornelius"]
[Black "Kolbus, Dietmar"]
[Result "0-1"]
[ECO "E91"]
[WhiteElo "2131"]
[BlackElo "2306"]
[Annotator "NA"]
[PlyCount "94"]
[EventDate "2017.??.??"]
[EventType "swiss"]
[EventCountry "GER"]
[SourceTitle "playchess.com"]
[Source "ChessBase"]
[SourceQuality "1"]
[TimeControl "40/6000+30:3000+30"]

1. d4 {[%emt 0:00:00]} Nf6 {[%emt 0:15:27]} 2. c4 {[%emt 0:00:05]} g6 {[%emt 0:00:29]} 3. Nc3 {[%emt 0:00:10]} Bg7 {[%emt 0:00:08]} 4. e4 {[%emt 0:00:23]} O-O {[%emt 0:00:06]} 5. Nf3 {[%emt 0:00:19]} d6 {[%emt 0:00:04]} 6. Be2 {[%emt 0:00:13]} Na6 {[%emt 0:00:08]} 7. O-O {[%emt 0:00:51]} e5 {[%emt 0:00:21]} 8. Be3 {[%emt 0:01:16]} Qe8 {[%emt 0:00:39]} 9. d5 {[%emt 0:12:58]} Ng4 {[%emt 0:00:50]} 10. Bd2 {[%emt 0:02:56]} f5 {[%emt 0:00:10]} 11. Ne1 {[%emt 0:10:33]} Nf6 {[%emt 0:07:41]} 12. exf5 {[%emt 0:14:38]} gxf5 {[%emt 0:05:24]} 13. f4 {[%emt 0:04:10]} Nc5 {[%emt 0:06:12]} 14. Nb5 {[%emt 0:06:53]} Rf7 {[%emt 0:09:03]} 15. fxe5 {[%emt 0:04:17]} Qxe5 {[%emt 0:00:45]} 16. Nf3 {[%emt 0:00:46]} Qe7 {[%emt 0:02:17]} 17. Ng5 {[%emt 0:15:09]} Rf8 {[%emt 0:00:21]} 18. Re1 {[%emt 0:00:10]} Nfe4 {[%emt 0:06:02]} 19. Nxe4 {[%emt 0:02:53]} Nxe4 {[%emt 0:00:18]} 20. Bc3 {[%emt 0:11:39]} Nxc3 {[%emt 0:06:19]} 21. bxc3 {[%emt 0:00:17]} Bxc3 {[%emt 0:03:13]} 22. Nxc3 {[%emt 0:00:44]} Qe3+ {[%emt 0:00:07]} 23. Kh1 {[%emt 0:00:10]} Qxc3 {[%emt 0:00:02]} 24. Rb1 {[%emt 0:00:09]} Re8 {[%emt 0:10:21]} 25. Rf1 {[%emt 0:03:09]} Re3 {[%emt 0:07:01]} 26. Rb3 {[%emt 0:03:24]} Qe5 {[%emt 0:00:28]} 27. Rxe3 {[%emt 0:01:14]} Qxe3 {[%emt 0:00:04]} 28. Rf3 {[%emt 0:00:51]} Qe5 {[%emt 0:00:07]} 29. Bd3 {[%emt 0:08:48]} Bd7 {[%emt 0:02:17]} 30. Qb1 {[%emt 0:00:27]} Re8 {[%emt 0:16:16]} 31. Qxb7 {[%emt 0:00:17]} Qa1+ {[%emt 0:00:19]} 32. Bf1 {[%emt 0:00:02]} Re1 {[%emt 0:00:19]} 33. Kg1 {[%emt 0:01:21]} Qd4+ {[%emt 0:00:05]} 34. Kh1 {[%emt 0:00:27]} Qxc4 {[%emt 0:00:58]} 35. Kg1 {[%emt 0:01:58]} Qd4+ {[%emt 0:00:20]} 36. Kh1 {[%emt 0:00:04]} Qb6 {[%emt 0:05:42]} 37. Qxb6 {[%emt 0:01:15]} cxb6 {[%emt 0:00:59]} 38. Kg1 {[%emt 0:00:12]} Ra1 {[%emt 0:01:16]} 39. a3 {[%emt 0:00:49]} Bb5 {[%emt 0:00:59]} 40. Rxf5 {[%emt 0:00:08]} Kg7 {[%emt 0:50:09]} 41. g4 {[%emt 0:04:10]} Rd1 {[%emt 0:00:00]} 42. Kg2 {[%emt 0:00:19]} Bxf1+ {[%emt 0:00:00]} 43. Rxf1 {[%emt 0:00:03]} Rxf1 {[%emt 0:00:00]} 44. Kxf1 {[%emt 0:00:04]} Kf6 {[%emt 0:00:00]} 45. Kf2 {[%emt 0:03:36]} Ke5 {[%emt 0:00:00]} 46. Ke3 {[%emt 0:00:24]} b5 {[%emt 0:00:00]} 47. h4 {[%emt 0:03:57]} a5 {[%emt 0:00:00] Kd4+} 0-1

[Event "88th GER-ch Men 2017"]
[Site "Apolda"]
[Date "2017.06.28"]
[Round "6"]
[White "Zude, Arno"]
[Black "Goepfert, Jakob"]
[Result "1-0"]
[ECO "B19"]
[WhiteElo "2392"]
[BlackElo "2099"]
[Annotator "NA"]
[PlyCount "65"]
[EventDate "2017.??.??"]
[EventType "swiss"]
[EventCountry "GER"]
[SourceTitle "playchess.com"]
[Source "ChessBase"]
[SourceQuality "1"]
[TimeControl "40/6000+30:3000+30"]

1. e4 {[%emt 0:00:00]} c6 {[%emt 0:00:09]} 2. d4 {[%emt 0:00:00]} d5 {[%emt 0:00:06]} 3. Nd2 {[%emt 0:00:00]} dxe4 {[%emt 0:00:14]} 4. Nxe4 {[%emt 0:00:00]} Bf5 {[%emt 0:00:16]} 5. Ng3 {[%emt 0:00:07] LiveBook: 11584 Games} Bg6 $1 {[%emt 0:00:06]} 6. h4 {[%emt 0:00:18]} h6 {[%emt 0:00:08]} 7. Nf3 {[%emt 0:00:10]} Nd7 {[%emt 0:00:19]} 8. h5 {[%emt 0:00:11]} Bh7 {[%emt 0:00:08]} 9. Bd3 {[%emt 0:00:07]} Bxd3 {[%emt 0:00:06]} 10. Qxd3 {[%emt 0:00:08]} Ngf6 {[%emt 0:00:19]} 11. Bd2 {[%emt 0:00:35]} e6 {[%emt 0:00:24]} 12. O-O-O {[%emt 0:00:25]} Be7 {[%emt 0:00:43]} 13. Kb1 {[%emt 0:00:42]} c5 {[%emt 0:01:31]} 14. Ne4 {[%emt 0:30:03]} Qc7 {[%emt 0:08:39]} 15. Nxf6+ {[%emt 0:17:21]} Nxf6 {[%emt 0:03:02]} 16. Ne5 {[%emt 0:14:21]} a6 {[%emt 0:12:46] [#]} 17. Bf4 $1 {[%emt 0:06:38]} Bd6 {[%emt 0:05:04]} (17... Nd5 $16 {was necessary.} 18. Bg3 Bd6) 18. Qg3 {[%emt 0:07:09]} O-O-O {[%emt 0:22:31]} 19. Qxg7 $18 {[%emt 0:14:11]} Nd5 {[%emt 0:21:30]} 20. dxc5 {[%emt 0:01:18]} f6 {[%emt 0:06:48]} 21. Qxh8 {[%emt 0:00:50]} Rxh8 {[%emt 0:00:37]} 22. cxd6 {[%emt 0:00:09]} Qg7 {[%emt 0:12:51]} 23. Ng6 {[%emt 0:00:16]} Nxf4 {[%emt 0:02:46]} 24. d7+ {[%emt 0:01:44]} Kd8 {[%emt 0:03:14]} 25. Nxf4 {[%emt 0:00:15]} Qg4 {[%emt 0:00:31]} 26. Rd4 {[%emt 0:06:51]} e5 {[%emt 0:01:51]} 27. Rc4 {[%emt 0:02:44]} Qxd7 {[%emt 0:03:51]} 28. Ng6 {[%emt 0:03:34]} Rg8 {[%emt 0:00:48]} 29. Kc1 {[%emt 0:00:33]} Qf5 {[%emt 0:01:51]} 30. Rd1+ {[%emt 0:01:37]} Ke8 {[%emt 0:00:05]} 31. g4 {[%emt 0:00:51]} Qe6 {[%emt 0:01:27]} 32. Rc7 {[%emt 0:00:04]} Rxg6 {[%emt 0:00:35]} 33. hxg6 1-0

[Event "88th GER-ch Men 2017"]
[Site "Apolda"]
[Date "2017.06.28"]
[Round "6"]
[White "Schmidt-Schaeffer, Sebastian"]
[Black "Tonndorf, Matthias"]
[Result "1-0"]
[ECO "E21"]
[WhiteElo "2380"]
[BlackElo "2256"]
[Annotator "NA"]
[PlyCount "99"]
[EventDate "2017.??.??"]
[EventType "swiss"]
[EventCountry "GER"]
[SourceTitle "playchess.com"]
[Source "ChessBase"]
[SourceQuality "1"]
[TimeControl "40/6000+30:3000+30"]

1. d4 {[%emt 0:00:00]} Nf6 {[%emt 0:00:08]} 2. c4 {[%emt 0:00:11]} e6 {[%emt 0:00:11]} 3. Nc3 {[%emt 0:00:25]} Bb4 {[%emt 0:00:19]} 4. Nf3 {[%emt 0:05:19]} c5 {[%emt 0:02:20]} 5. e3 {[%emt 0:03:48]} O-O {[%emt 0:02:13]} 6. Bd3 {[%emt 0:02:00]} b6 {[%emt 0:02:04]} 7. O-O {[%emt 0:01:01]} Bb7 {[%emt 0:00:17]} 8. Qe2 {[%emt 0:09:12]} (8. Na4 $5 {[%cal Ra2a3]}) 8... Bxf3 {[%emt 0:06:24] E43: Nimzo-Indian: Rubinstein: 4...b6} (8... Bxc3 9. bxc3 Be4 10. Nd2 Bxd3 11. Qxd3 Nc6 12. e4 e5 13. d5 Ne7 14. f4 exf4 15. e5 Ng4 16. Qe2 f5 17. h3 {1-0 (58) Duda,J (2658)-Bachmann,A (2593) Berlin 2015}) 9. Qxf3 {[%emt 0:06:27]} Nc6 {[%emt 0:00:44]} 10. Ne2 {[%emt 0:04:24]} Qe7 $146 {[%emt 0:01:35]} ({Predecessor:} 10... cxd4 $11 11. exd4 d5 12. Rd1 dxc4 13. Bxh7+ Kxh7 14. Qxc6 Qd5 15. Qa4 Bd6 16. h3 {0-1 (28) Guth,W (1958)-Sobolevsky,L (2271) Frankfurt 2010}) 11. a3 {[%emt 0:04:40]} Ba5 {[%emt 0:00:27]} 12. e4 {[%emt 0:02:11]} Ne8 {[%emt 0:15:55]} ({But not} 12... Nxd4 $2 13. Nxd4 Qd6 14. Nb3 $18) 13. e5 {[%emt 0:19:08]} Rc8 {[%emt 0:05:25]} 14. Qh3 {[%emt 0:02:56]} ({But not} 14. b4 $6 cxb4 15. Qh3 (15. axb4 Bxb4 16. Be4 a5 $11) 15... f5 $14) 14... f5 {[%emt 0:02:54]} 15. f4 {[%emt 0:01:21]} b5 {[%emt 0:03:41]} 16. d5 {[%emt 0:06:45]} bxc4 {[%emt 0:01:30]} 17. d6 {[%emt 0:02:55]} Qf7 {[%emt 0:06:56]} 18. Bxc4 {[%emt 0:00:23]} Bb6 {[%emt 0:00:17]} 19. Bd2 {[%emt 0:01:55]} Rb8 {[%emt 0:05:50]} 20. Rac1 {[%emt 0:10:47]} g6 {[%emt 0:01:19]} 21. Qb3 {[%emt 0:05:42]} Ng7 {[%emt 0:00:53]} 22. Qa4 {[%emt 0:00:18]} Qe8 {[%emt 0:06:02]} 23. Bb5 {[%emt 0:01:17]} Rc8 {[%emt 0:00:29]} 24. Be3 {[%emt 0:01:56]} Qd8 {[%emt 0:05:03]} 25. Kh1 {[%emt 0:04:14]} Nb8 {[%emt 0:02:57]} 26. Rc2 {[%emt 0:01:51]} h6 {[%emt 0:04:06]} 27. Rfc1 {[%emt 0:00:50]} Kh7 {[%emt 0:00:37]} 28. Bxc5 {[%emt 0:03:51]} Bxc5 {[%emt 0:00:35]} 29. Rxc5 {[%emt 0:00:05]} Rxc5 {[%emt 0:00:06]} 30. Rxc5 {[%emt 0:00:03]} Qb6 {[%emt 0:00:40]} 31. b4 {[%emt 0:00:21]} Qb7 {[%emt 0:03:18]} 32. Qc2 {[%emt 0:01:11]} g5 {[%emt 0:00:49]} 33. fxg5 {[%emt 0:00:34]} hxg5 {[%emt 0:00:10]} 34. Nd4 {[%emt 0:00:38]} Rf7 {[%emt 0:01:32]} 35. Be2 {[%emt 0:04:13]} Kh6 {[%emt 0:01:28]} 36. Qd3 {[%emt 0:02:11]} g4 {[%emt 0:01:25]} 37. Kg1 {[%emt 0:00:46]} Nh5 {[%emt 0:00:39]} 38. Qd2+ {[%emt 0:01:16]} Kg6 {[%emt 0:00:50]} 39. Bd3 {[%emt 0:00:12]} Rg7 {[%emt 0:01:46]} 40. Qf2 {[%emt 0:01:16]} Na6 {[%emt 1:00:07]} 41. Rc4 {[%emt 0:06:53]} Qd5 {[%emt 0:00:00]} 42. Qe3 {[%emt 0:07:06]} g3 $18 {[%emt 0:00:00]} 43. hxg3 {[%emt 0:04:07]} Kf7 {[%emt 0:00:00]} 44. Qh6 {[%emt 0:05:09]} Nxg3 {[%emt 0:00:00]} 45. Qf6+ {[%emt 0:00:17]} Kg8 {[%emt 0:00:00]} 46. Rc8+ {[%emt 0:00:42]} Kh7 {[%emt 0:00:00]} 47. Qh4+ {[%emt 0:00:34]} Kg6 {[%emt 0:00:00]} 48. Rh8 {[%emt 0:05:23]} Qxe5 {[%emt 0:00:00]} 49. Rh6+ {[%emt 0:00:09]} Kf7 {[%emt 0:00:00]} 50. Qe7+ {[%emt 0:00:07]} 1-0